bitfinex-derivatives/quotes_SOLF0:USTF0_20250131
["timestamp","ask_amount","ask_price","bid_price","bid_amount"]
[1738331643859,0.02934707,240.74,240.73,4.1542]
[1738331645364,0.02934707,240.74,240.7,0.03043357]
[1738331645564,0.02934707,240.74,240.72,4.1543]
[1738331646668,0.02934707,240.74,240.7,0.03043357]
[1738331647465,11.1853444,240.72,240.7,0.03043357]
[1738331648067,11.1853444,240.72,240.62,4.0959]
[1738331648371,0.02934707,240.74,240.62,4.0959]
[1738331648372,11.1853444,240.68,240.62,4.0959]
[1738331648670,11.1853444,240.68,240.65,4.1555]
[1738331649172,4.1554,240.66,240.64,0.02832043]
[1738331649373,11.1853444,240.65,240.55,1.3915]
[1738331649672,11.1853444,240.65,240.63,0.03181367]
[1738331649871,11.1853444,240.65,240.62,0.03025909]
[1738331651571,11.1853444,240.65,240.62,4.18635909]
[1738331653270,11.1853444,240.65,240.63,4.1559]
[1738331654477,11.1853444,240.65,240.64,4.1557]
[1738331655467,11.1853444,240.65,240.62,0.03025909]
[1738331656879,4.1559,240.63,240.58,4.1567]
[1738331657075,11.1853444,240.61,240.58,4.1567]
[1738331657576,11.1853444,240.61,240.57,4.1569]
[1738331657779,11.1853444,240.58,240.57,4.1569]
[1738331658377,11.1853444,240.58,240.55,0.0298893]
[1738331659882,11.1853444,240.58,240.55,4.1871893]
[1738331660878,11.1853444,240.58,240.55,0.0298893]
[1738331661080,0.02643639,240.6,240.59,4.1566]
[1738331668289,11.1853444,240.7,240.66,4.1554]
[1738331668485,2.68,240.69,240.57,1.429]
[1738331668879,13.8653444,240.7,240.57,1.429]
[1738331669083,11.1853444,240.67,240.57,1.429]
[1738331669585,11.1853444,240.67,240.66,4.1553]
[1738331670686,11.1853444,240.67,240.6,0.02730824]
[1738331670885,11.1853444,240.67,240.65,4.1555]
[1738331671594,11.1853444,240.67,240.6,0.02730824]
[1738331671994,11.1853444,240.64,240.6,0.02730824]
[1738331672192,11.1853444,240.61,240.6,0.02730824]
[1738331672689,11.1853444,240.61,240.58,4.1566]
[1738331674295,11.1853444,240.61,240.59,4.1566]
[1738331679002,11.1853444,240.61,240.57,0.02821524]
[1738331679201,2.68,240.62,240.57,0.02821524]
[1738331679403,0.02622527,240.63,240.57,0.02821524]
[1738331679894,0.02622527,240.63,240.62,4.1561]
[1738331680298,0.02622527,240.63,240.57,0.02821524]
[1738331680494,11.1853444,240.61,240.58,4.1567]
[1738331680902,11.1853444,240.61,240.57,0.02821524]
[1738331681098,11.1853444,240.58,240.57,4.18511524]
[1738331686514,11.1853444,240.61,240.57,0.02821524]
[1738331686711,11.1853444,240.61,240.59,4.1566]
[1738331687609,11.1853444,240.61,240.57,0.02821524]
[1738331687809,11.1853444,240.61,240.58,4.1567]
[1738331688513,15.3416444,240.61,240.57,4.18511524]
[1738331688714,11.1853444,240.58,240.57,0.02821524]
[1738331692510,7.17099905,240.58,240.57,0.02821524]
[1738331694117,7.17099905,240.58,240.57,4.18511524]
[1738331694717,7.17099905,240.62,240.57,0.02821524]
[1738331694914,0.02622527,240.63,240.57,0.02821524]
[1738331695321,0.02622527,240.63,240.62,4.1561]
[1738331697719,2.68,240.69,240.68,4.1549]
[1738331698521,2.68,240.69,240.58,1.4122]
[1738331698723,2.68,240.69,240.66,0.0282851]
[1738331698918,2.68,240.69,240.58,1.4122]
[1738331699119,2.68,240.69,240.65,0.0291994]
[1738331700017,11.2262837,240.7,240.65,0.0291994]
[1738331700216,13.9062837,240.7,240.65,0.0291994]
[1738331700614,13.9062837,240.7,240.69,4.1549]
[1738331701216,2.70881237,240.7,240.69,4.1549]
[1738331701415,0.02881237,240.7,240.69,4.1549]
[1738331703315,2.68,240.74,240.66,2.6525]
[1738331703520,2.68,240.74,240.73,4.1542]
[1738331705622,11.22589573,240.76,240.75,4.1538]
[1738331705926,0.0284244,240.76,240.75,4.1538]
[1738331710431,11.22589573,240.76,240.71,0.02929664]
[1738331710831,11.19747133,240.73,240.71,0.02929664]
[1738331713633,11.19747133,240.73,240.55,11.19747133]
[1738331713823,11.19747133,240.67,240.59,4.1214]
[1738331714430,11.19747133,240.64,240.59,4.1214]
[1738331714835,11.22672996,240.64,240.59,4.15292404]
[1738331715635,11.19747133,240.61,240.59,1.37062404]
[1738331716035,11.19747133,240.61,240.59,0.03152404]
[1738331719437,15.35377133,240.61,240.59,0.03152404]
[1738331719629,11.19747133,240.61,240.59,0.03152404]
[1738331723037,15.35377133,240.61,240.59,0.03152404]
[1738331724545,7.17119363,240.6,240.59,0.03152404]
[1738331724744,7.17119363,240.6,240.49,4.2542]
[1738331724943,7.17119363,240.54,240.49,4.2542]
[1738331725244,7.17119363,240.54,240.53,4.1576]
[1738331725643,7.17119363,240.56,240.49,11.42539363]
[1738331725843,7.20210823,240.56,240.51,0.02945238]
[1738331726746,7.20210823,240.56,240.55,4.1573]
[1738331726948,7.17119363,240.64,240.54,7.17119363]
[1738331727147,7.17119363,240.62,240.55,7.17119363]
[1738331727346,7.17119363,240.58,240.51,7.17119363]
[1738331727550,7.17119363,240.56,240.49,11.42539363]
[1738331727945,7.17119363,240.56,240.55,4.1573]
[1738331731451,7.19889653,240.58,240.51,7.17119363]
[1738331731651,7.19889653,240.58,240.57,4.1569]
[1738331731854,0.0277029,240.58,240.57,4.1569]
[1738331732451,9.85119363,240.62,240.61,4.1563]
[1738331733657,7.17119363,240.62,240.61,4.1563]
[1738331734259,7.17119363,240.62,240.55,0.02713701]
[1738331734459,7.17119363,240.58,240.55,0.02713701]
[1738331735358,0.02679228,240.59,240.57,4.1569]
[1738331735559,7.17119363,240.58,240.55,0.02713701]
[1738331735762,7.17119363,240.56,240.55,0.02713701]
[1738331737753,7.17119363,240.56,240.49,4.2542]
[1738331737959,7.17119363,240.5,240.49,4.1583]
[1738331738661,11.21026238,240.53,240.5,4.1581]
[1738331738853,15.36796238,240.53,240.39,11.21026238]
[1738331739053,15.36796238,240.53,240.49,0.02833749]
[1738331739251,15.36796238,240.53,240.39,11.21026238]
[1738331739457,15.39947919,240.53,240.49,0.02622698]
[1738331739663,15.39947919,240.53,240.39,11.21026238]
[1738331739859,11.24177919,240.53,240.52,4.1578]
[1738331740856,11.24177919,240.53,240.5,0.02698529]
[1738331741056,11.24177919,240.53,240.5,4.18498529]
[1738331741354,11.24177919,240.53,240.5,0.02698529]
[1738331741560,11.24177919,240.53,240.51,4.1579]
[1738331741859,0.03151681,240.53,240.5,0.02698529]
[1738331742558,0.03151681,240.53,240.51,4.1578]
[1738331742859,0.03151681,240.53,240.5,0.02698529]
[1738331743258,0.03151681,240.53,240.51,4.158]
[1738331743451,0.03151681,240.53,240.5,0.02698529]
[1738331744060,0.03151681,240.53,240.52,4.1578]
[1738331757662,0.03151681,240.53,240.5,0.02698529]
[1738331757869,11.24177919,240.53,240.5,0.02698529]
[1738331758465,4.1579,240.52,240.5,0.02698529]
[1738331758968,11.24177919,240.53,240.5,0.02698529]
[1738331759171,15.39947919,240.53,240.5,0.02698529]
[1738331759372,11.24177919,240.53,240.5,0.02698529]
[1738331759669,15.39947919,240.53,240.5,0.02698529]
[1738331760570,7.17677555,240.51,240.5,0.02698529]
[1738331762866,7.17677555,240.51,240.5,4.18518529]
[1738331765575,7.20829236,240.53,240.52,4.1578]
[1738331769281,0.03151681,240.53,240.52,4.1578]
[1738331769775,7.20829236,240.53,240.52,4.1578]
[1738331769977,7.20829236,240.53,240.5,0.02698529]
[1738331770179,7.17677555,240.51,240.5,0.02698529]
[1738331770378,7.17677555,240.51,240.4,1.3475]
[1738331770578,7.17677555,240.44,240.43,4.1593]
[1738331773782,7.20514699,240.46,240.45,4.159]
[1738331773979,0.02837144,240.46,240.45,4.159]
[1738331783789,7.20514699,240.46,240.41,0.02758246]
[1738331784091,0.02837144,240.46,240.44,4.1592]
[1738331784292,0.02837144,240.46,240.41,0.02758246]
[1738331785094,7.17677555,240.42,240.41,0.02758246]
[1738331785593,11.33627555,240.42,240.41,0.02758246]
[1738331785788,7.17677555,240.36,240.28,7.17677555]
[1738331786093,7.17677555,240.34,240.28,7.17677555]
[1738331786394,7.17677555,240.32,240.26,7.17677555]
[1738331786592,7.17677555,240.3,240.25,4.0649]
[1738331786895,7.20723188,240.3,240.27,4.162]
[1738331787189,7.20723188,240.3,240.25,4.09272177]
[1738331787397,7.17677555,240.28,240.25,0.02782177]
[1738331788097,7.17677555,240.28,240.26,4.1623]
[1738331788487,7.17677555,240.28,240.25,0.02782177]
[1738331788796,11.23289123,240.29,240.25,0.02782177]
[1738331789194,11.23289123,240.26,240.25,0.02782177]
[1738331789392,13.91289123,240.26,240.15,4.0649]
[1738331789999,13.91289123,240.26,240.19,4.1634]
[1738331790689,0.03065149,240.25,240.2,4.19259798]
[1738331790897,0.03065149,240.25,240.2,0.02929798]
[1738331791695,11.23289123,240.21,240.2,0.02929798]
[1738331792294,0.03065149,240.25,240.2,0.02929798]
[1738331792295,11.23289123,240.24,240.2,0.02929798]
[1738331793396,0.03065149,240.25,240.24,4.1627]
[1738331797796,5.149e-05,240.25,240.24,4.1627]
[1738331799393,5.149e-05,240.25,240.24,15.39559123]
[1738331802601,97.79249123,240.42,240.37,4.1603]
[1738331802803,93.63289123,240.42,240.28,11.23289123]
[1738331803004,82.4,240.42,240.28,11.23289123]
[1738331803800,0.02745821,240.37,240.33,0.02716885]
[1738331804399,0.02745821,240.37,240.36,4.1606]
[1738331805199,5.821e-05,240.37,240.36,4.1606]
[1738331811007,5.821e-05,240.37,240.36,15.39349123]
[1738331813103,13.91289123,240.53,240.36,15.39349123]
[1738331813304,13.91289123,240.53,240.4,11.23289123]
[1738331814206,11.23289123,240.5,240.37,12.66529123]
[1738331814402,0.03183024,240.49,240.44,0.02960495]
[1738331815207,0.03183024,240.49,240.48,4.1585]
[1738331815405,0.03183024,240.49,240.44,0.02960495]
[1738331815607,0.03183024,240.49,240.47,4.1586]
[1738331818106,4.1586,240.48,240.44,4.18870495]
[1738331818309,0.03183024,240.49,240.44,0.02960495]
[1738331818708,11.23289123,240.47,240.44,0.02960495]
[1738331822505,4.159,240.45,240.44,0.02960495]
[1738331822807,11.23289123,240.47,240.31,1.4088]
[1738331823010,11.23289123,240.4,240.31,1.4088]
[1738331823211,15.39289123,240.4,240.35,4.1607]
[1738331823403,11.23289123,240.4,240.31,1.4088]
[1738331823808,0.03164605,240.38,240.37,4.1603]
[1738331824209,0.03164605,240.38,240.33,0.02748964]
[1738331824511,0.03164605,240.38,240.37,4.1604]
[1738331825016,0.03164605,240.38,240.33,0.02748964]
[1738331825814,0.03164605,240.38,240.35,4.1607]
[1738331826017,0.03164605,240.38,240.33,0.02748964]
[1738331827113,0.03164605,240.38,240.37,4.1604]
[1738331827910,0.03164605,240.38,240.33,0.02748964]
[1738331828614,0.03164605,240.38,240.36,4.1605]
[1738331830207,0.03164605,240.38,240.35,4.1607]
[1738331830413,0.03164605,240.38,240.33,0.02748964]
[1738331830612,7.18343513,240.35,240.33,0.02748964]
[1738331830810,7.18343513,240.35,240.34,4.1609]
[1738331831912,7.18343513,240.37,240.33,0.02748964]
[1738331832515,7.18343513,240.37,240.36,4.1606]
[1738331832713,7.18343513,240.37,240.33,0.02748964]
[1738331833114,7.18343513,240.37,240.34,4.1609]
[1738331833314,7.18343513,240.37,240.33,0.02748964]
[1738331834107,0.03164605,240.38,240.33,0.02748964]
[1738331834408,0.03164605,240.38,240.37,4.1604]
[1738331837613,4.605e-05,240.38,240.37,4.1604]
[1738331837815,7.18343513,240.49,240.46,4.1588]
[1738331839219,7.18343513,240.49,240.47,4.1585]
[1738331839610,7.18343513,240.49,240.45,0.02669471]
[1738331839815,7.18343513,240.49,240.45,4.18559471]
[1738331840115,7.18343513,240.49,240.45,0.02669471]
[1738331841020,7.18343513,240.49,240.47,4.1585]
[1738331841421,7.18343513,240.49,240.45,0.02669471]
[1738331841621,7.18343513,240.46,240.45,0.02669471]
[1738331842121,7.18343513,240.48,240.45,0.02669471]
[1738331842627,7.21393795,240.5,240.45,0.02669471]
[1738331843225,7.21393795,240.5,240.49,4.1583]
[1738331843426,0.03050282,240.5,240.49,4.1583]
[1738331845631,2.82e-06,240.5,240.49,4.1583]
[1738331848134,7.18343795,240.5,240.49,4.1583]
[1738331849933,2.82e-06,240.5,240.49,4.1583]
[1738331850539,7.18343795,240.5,240.49,4.1583]
[1738331850937,2.82e-06,240.5,240.49,4.1583]
[1738331851635,7.18343795,240.5,240.49,4.1583]
[1738331851937,7.18343795,240.5,240.45,0.02669471]
[1738331852235,7.18343513,240.48,240.45,0.02669471]
[1738331853338,7.18343513,240.46,240.45,0.02669471]
[1738331855335,11.34223513,240.46,240.45,0.02669471]
[1738331861546,7.18343513,240.46,240.45,0.02669471]
[1738331862045,7.18343513,240.48,240.45,0.02669471]
[1738331862245,7.18343513,240.46,240.45,0.02669471]
[1738331864647,11.34223513,240.46,240.45,0.02669471]
[1738331865448,4.1593,240.44,240.36,4.1605]
[1738331865647,7.18343513,240.38,240.32,7.18343513]
[1738331866544,0.02730417,240.37,240.34,4.1609]
[1738331866746,0.02730417,240.37,240.33,0.02661985]
[1738331867044,0.02730417,240.37,240.36,4.1606]
[1738331873449,4.17e-06,240.37,240.36,4.1606]
[1738331879052,4.17e-06,240.37,240.35,4.1606]
[1738331879253,7.18343513,240.36,240.35,4.1606]
[1738331879951,7.18343513,240.36,240.33,4.18751985]
[1738331880155,7.18343513,240.34,240.33,4.18751985]
[1738331883156,7.18343513,240.36,240.34,4.1609]
[1738331883454,4.17e-06,240.37,240.33,0.02661985]
[1738331884458,4.17e-06,240.37,240.36,4.1606]
[1738331884952,4.17e-06,240.37,240.35,4.1607]
[1738331885156,7.18343513,240.36,240.33,0.02661985]
[1738331885354,7.18343513,240.34,240.17,7.18343513]
[1738331885557,7.18343513,240.26,240.25,4.1624]
[1738331886045,7.18343513,240.26,240.24,4.1626]
[1738331886245,7.18343513,240.25,240.24,4.1626]
[1738331886751,7.18343513,240.25,240.17,7.18343513]
[1738331886752,0.03107168,240.27,240.25,4.1624]
[1738331887654,0.03107168,240.27,240.24,0.03183964]
[1738331890153,0.03107168,240.27,240.26,4.1623]
[1738331892161,0.03107168,240.27,240.24,0.03183964]
[1738331892863,0.03107168,240.27,240.26,4.1623]
[1738331895358,11.23314972,240.33,240.24,0.03183964]
[1738331895562,11.23314972,240.33,240.32,4.1613]
[1738331895965,11.23314972,240.36,240.33,4.161]
[1738331896163,13.91314972,240.36,240.33,4.161]
[1738331896662,18.07384972,240.36,240.32,0.0281502]
[1738331897460,18.07384972,240.36,240.32,4.1893502]
[1738331899969,11.23314972,240.33,240.25,1.343]
[1738331900167,11.23314972,240.3,240.25,1.343]
[1738331900364,11.23314972,240.3,240.21,1.3583]
[1738331900769,15.39484972,240.3,240.25,4.1623]
[1738331901070,11.23314972,240.3,240.21,1.3583]
[1738331901268,11.23314972,240.26,240.25,0.02904001]
[1738331902969,11.23314972,240.29,240.25,0.02904001]
[1738331903169,0.03000928,240.3,240.25,0.02904001]
[1738331903672,0.03000928,240.3,240.29,4.1618]
[1738331918591,7.21594827,240.3,240.29,4.1618]
[1738331930797,7.21594827,240.3,240.25,0.02904001]
[1738331930999,7.18593899,240.26,240.25,4.19154001]
[1738331932596,7.18593899,240.26,240.25,0.02904001]
[1738331932798,7.18593899,240.26,240.23,4.1628]
[1738331933099,7.18593899,240.24,240.13,7.18593899]
[1738331933302,7.18593899,240.2,240.19,4.1635]
[1738331933496,0.00123899,240.2,240.19,4.1635]
[1738331933800,7.18593899,240.22,240.21,4.1632]
[1738331934000,0.03034416,240.22,240.21,4.1632]
[1738331934200,7.18593899,240.26,240.19,7.18593899]
[1738331934400,7.18593899,240.26,240.25,4.1625]
[1738331940808,0.03030554,240.28,240.27,4.1621]
[1738331946705,2.68,240.36,240.31,4.1614]
[1738331946706,7.18593899,240.33,240.31,4.1614]
[1738331946912,7.18593899,240.33,240.25,7.18593899]
[1738331947409,7.18593899,240.31,240.29,4.1616]
[1738331948912,7.18593899,240.31,240.28,0.03100482]
[1738331948913,7.18593899,240.31,240.3,4.1616]
[1738331954221,7.18593899,240.31,240.28,0.03100482]
[1738331954222,7.18593899,240.31,240.28,4.19280482]
[1738331954423,7.18593899,240.29,240.28,0.03100482]
[1738331956224,11.34773899,240.29,240.28,0.03100482]
[1738331957218,7.18593899,240.29,240.17,4.1456]
[1738331957423,7.18593899,240.23,240.17,4.1456]
[1738331957623,7.18593899,240.23,240.17,2.7147]
[1738331957820,7.18593899,240.23,240.22,4.1629]
[1738331959028,7.18593899,240.23,240.2,0.03016098]
[1738331959029,7.21483895,240.25,240.23,4.1627]
[1738331960526,0.02889996,240.25,240.24,4.1627]
[1738331965132,7.18593899,240.31,240.24,7.18593899]
[1738331965331,7.18593899,240.35,240.28,7.18593899]
[1738331965836,7.18593899,240.35,240.3,4.1616]
[1738331966027,7.18593899,240.35,240.28,7.18593899]
[1738331966230,7.18593899,240.37,240.3,7.18593899]
[1738331966536,0.02827382,240.34,240.3,7.18593899]
[1738331966734,0.02827382,240.34,240.32,7.18593899]
[1738331966936,12.89432523,240.41,240.32,7.18593899]
[1738331967137,12.89432523,240.41,240.34,7.18593899]
[1738331967833,7.18593899,240.41,240.34,7.18593899]
[1738331968136,0.02319337,240.4,240.36,7.18593899]
[1738331969239,0.02319337,240.4,240.39,4.1601]
[1738331970838,7.18593899,240.45,240.38,7.18593899]
[1738331971042,7.18593899,240.45,240.44,4.1592]
[1738331971735,7.18593899,240.47,240.38,7.18593899]
[1738331972138,7.18593899,240.47,240.4,7.21678986]
[1738331972335,7.18593899,240.49,240.42,7.18593899]
[1738331972734,47.05728997,240.56,240.3,2.6783]
[1738331972735,7.18593899,240.47,240.43,0.02869875]
[1738331972941,7.18593899,240.47,240.45,4.1589]
[1738331973536,7.18593899,240.47,240.43,0.02840658]
[1738331973537,7.18593899,240.47,240.43,4.18760658]
[1738331973735,7.18593899,240.45,240.43,0.02840658]
[1738331974843,11.34513899,240.45,240.43,0.02840658]
[1738331975736,7.18593899,240.45,240.43,0.02840658]
[1738331975945,4.1592,240.44,240.43,0.02840658]
[1738331976933,11.34493899,240.45,240.43,0.02840658]
[1738331977342,7.18593899,240.45,240.43,0.02840658]
[1738331977646,4.1592,240.44,240.43,0.02840658]
[1738331978244,7.18593899,240.45,240.43,0.02840658]
[1738331978447,7.18593899,240.47,240.43,0.02840658]
[1738331978845,7.18593899,240.45,240.43,4.18760658]
[1738331979047,7.18593899,240.45,240.43,0.02840658]
[1738331979248,7.18593899,240.45,240.3,2.6783]
[1738331979453,7.18593899,240.36,240.34,4.1608]
[1738331981950,7.18593899,240.36,240.33,0.02833792]
[1738331982152,7.18593899,240.36,240.35,4.1607]
[1738331983042,0.02840658,240.37,240.35,4.1607]
[1738331985450,7.18593899,240.36,240.35,4.1607]
[1738331985654,7.18593899,240.36,240.33,0.02833792]
[1738331985852,7.18593899,240.36,240.33,4.18933792]
[1738331986254,7.18593899,240.36,240.34,4.1609]
[1738331989857,7.18593899,240.36,240.33,0.02833792]
[1738331990058,7.18593899,240.36,240.35,4.1607]
[1738331990260,0.02840658,240.37,240.33,0.02833792]
[1738331990458,0.02840658,240.37,240.34,4.1609]
[1738331990757,0.02840658,240.37,240.33,0.02833792]
[1738331991460,0.02840658,240.37,240.35,4.1606]
[1738331993655,0.02840658,240.37,240.36,4.1606]
[1738331997758,7.18593899,240.44,240.35,7.18593899]
[1738331997960,7.18593899,240.44,240.42,4.1594]
[1738331998461,7.18593899,240.46,240.43,4.1592]
[1738331999264,11.34483899,240.46,240.43,4.1592]
[1738332000360,7.18593899,240.44,240.42,4.18753416]
[1738332001364,4.1594,240.43,240.42,0.02803416]
[1738332001768,7.18593899,240.44,240.3,2.6783]
[1738332001961,7.18593899,240.35,240.3,2.6783]
[1738332002362,7.18593899,240.37,240.35,4.1607]
[1738332002570,7.18593899,240.39,240.31,7.18593899]
[1738332002866,2.66,240.48,240.33,4.19187638]
[1738332002867,7.21397315,240.37,240.33,4.19187638]
[1738332003071,7.18593899,240.35,240.33,4.1609]
[1738332003273,7.18593899,240.35,240.33,4.18736542]
[1738332003865,7.18593899,240.35,240.34,4.1609]
[1738332004168,7.18593899,240.35,240.33,0.02646542]
[1738332004368,7.18593899,240.35,240.33,4.18736542]
[1738332004668,7.18593899,240.35,240.33,0.02646542]
[1738332005072,7.18593899,240.35,240.34,4.1609]
[1738332005559,0.02803416,240.37,240.33,0.02646542]
[1738332005560,7.21397315,240.37,240.33,0.02646542]
[1738332005760,0.02803416,240.37,240.36,4.1606]
[1738332006570,7.21397315,240.37,240.33,0.02646542]
[1738332007171,7.21397315,240.37,240.36,4.1606]
[1738332007671,7.21397315,240.37,240.33,0.02646542]
[1738332007970,7.18593899,240.35,240.34,4.1609]
[1738332008167,7.21397315,240.37,240.33,0.02646542]
[1738332008572,7.21397315,240.37,240.35,4.1606]
[1738332010475,7.21397315,240.37,240.33,0.02646542]
[1738332010476,0.02803416,240.37,240.36,4.1606]
[1738332010771,7.18593899,240.45,240.35,7.18593899]
[1738332010977,7.18593899,240.45,240.4,4.1599]
[1738332011275,7.18593899,240.45,240.38,7.18593899]
[1738332011471,7.18593899,240.43,240.36,7.18593899]
[1738332011775,7.18593899,240.43,240.37,0.03076684]
[1738332011974,7.18593899,240.43,240.42,4.1594]
[1738332012675,7.18593899,240.45,240.44,4.1591]
[1738332013271,7.18593899,240.47,240.42,0.02798394]
[1738332013471,7.18593899,240.47,240.46,4.1587]
[1738332013673,7.18593899,240.47,240.42,0.02798394]
[1738332013975,7.18593899,240.45,240.42,0.02798394]
[1738332014274,7.18593899,240.43,240.42,0.02798394]
[1738332014675,7.18593899,240.43,240.42,4.18748394]
[1738332014872,7.18593899,240.43,240.42,0.02798394]
[1738332015376,4.1598,240.41,240.32,1.3234]
[1738332015568,7.18593899,240.34,240.32,1.3234]
[1738332016072,7.18593899,240.34,240.33,4.1611]
[1738332016472,4.1612,240.33,240.31,0.0289437]
[1738332016772,7.21392293,240.36,240.29,7.18593899]
[1738332016972,0.02798394,240.36,240.35,4.1607]
[1738332017172,7.18593899,240.41,240.33,7.18593899]
[1738332017468,0.02738719,240.38,240.35,4.1607]
[1738332017675,0.02738719,240.38,240.31,4.1921]
[1738332017676,0.02738719,240.38,240.31,11.37803899]
[1738332017871,0.02738719,240.38,240.33,7.18593899]
[1738332018180,0.02738719,240.38,240.37,4.1604]
[1738332018873,0.02738719,240.38,240.34,0.02698451]
[1738332019975,0.02738719,240.38,240.35,7.18593899]
[1738332020367,0.02738719,240.38,240.37,4.1604]
[1738332020570,0.02738719,240.38,240.34,0.02698451]
[1738332021674,0.02738719,240.38,240.37,4.1604]
[1738332023076,8.719e-05,240.38,240.37,4.1604]
[1738332023274,7.18593899,240.43,240.42,4.1595]
[1738332024877,7.18593899,240.43,240.4,0.02759623]
[1738332025078,7.18593899,240.41,240.4,0.02759623]
[1738332026580,11.34563899,240.41,240.4,0.02759623]
[1738332027684,4.1604,240.37,240.34,4.1609]
[1738332027880,7.18593899,240.35,240.34,4.1609]
[1738332028280,7.18593899,240.37,240.36,4.1606]
[1738332031582,7.21413197,240.39,240.38,4.1602]
[1738332032783,0.02819298,240.39,240.38,4.1602]
[1738332034889,0.02819298,240.39,240.37,4.1604]
[1738332035391,0.02819298,240.39,240.38,4.1602]
[1738332035986,9.298e-05,240.39,240.38,4.1602]
[1738332043496,9.298e-05,240.39,240.38,11.34613899]
[1738332047999,9.298e-05,240.39,240.38,4.1602]
[1738332049098,9.298e-05,240.39,240.38,11.34613899]
[1738332050103,9.298e-05,240.39,240.38,4.1602]
[1738332051298,9.298e-05,240.39,240.38,11.34613899]
[1738332053404,9.298e-05,240.39,240.38,4.1602]
[1738332055012,7.18603197,240.39,240.38,4.1602]
[1738332055407,9.298e-05,240.39,240.38,4.1602]
[1738332061709,7.18603197,240.39,240.34,0.02784929]
[1738332061910,7.18593899,240.37,240.36,4.1606]
[1738332062712,7.18593899,240.37,240.34,0.02784929]
[1738332063016,7.18593899,240.35,240.34,0.02784929]
[1738332063819,11.34663899,240.35,240.34,0.02784929]
[1738332064116,7.18593899,240.35,240.24,7.18593899]
[1738332064321,7.18593899,240.35,240.28,7.18593899]
[1738332064524,7.18593899,240.35,240.34,4.1609]
[1738332064916,7.18593899,240.35,240.24,7.18593899]
[1738332065116,7.18593899,240.31,240.24,7.18593899]
[1738332065415,7.18593899,240.31,240.27,0.02973795]
[1738332065620,7.18593899,240.29,240.28,4.162]
[1738332067110,7.18593899,240.29,240.27,4.19183795]
[1738332069417,4.162,240.28,240.27,0.02973795]
[1738332069817,9.84593899,240.29,240.27,0.02973795]
[1738332070722,9.84593899,240.29,240.27,4.19173795]
[1738332071524,2.66,240.29,240.28,4.162]
[1738332071819,0.02651124,240.32,240.28,7.18593899]
[1738332072022,0.02651124,240.32,240.31,4.1614]
[1738332072321,1.124e-05,240.32,240.31,4.1614]
[1738332074714,1.124e-05,240.32,240.27,0.02973795]
[1738332074924,11.22127113,240.32,240.27,0.02973795]
[1738332075522,11.22127113,240.32,240.28,4.1619]
[1738332076422,1.124e-05,240.32,240.3,4.1616]
[1738332077922,1.124e-05,240.32,240.27,0.02973795]
[1738332078925,1.124e-05,240.32,240.28,4.1619]
[1738332079119,1.124e-05,240.32,240.27,0.02973795]
[1738332080821,1.124e-05,240.32,240.31,4.1614]
[1738332083731,1.124e-05,240.32,240.27,0.02973795]
[1738332085625,1.124e-05,240.32,240.31,4.1614]
[1738332087832,4.16131124,240.32,240.29,4.1616]
[1738332088134,1.124e-05,240.32,240.29,4.1616]
[1738332088732,1.124e-05,240.32,240.3,4.1616]
[1738332089126,1.124e-05,240.32,240.27,0.02973795]
[1738332089427,1.124e-05,240.32,240.29,4.1616]
[1738332089631,4.16131124,240.32,240.29,4.1616]
[1738332090733,1.124e-05,240.32,240.29,4.1616]
[1738332091533,1.124e-05,240.32,240.27,0.02973795]
[1738332091736,1.124e-05,240.32,240.3,4.1615]
[1738332093529,1.124e-05,240.32,240.27,0.02973795]
[1738332093733,1.124e-05,240.32,240.31,4.1614]
[1738332109153,1.124e-05,240.32,240.27,0.02973795]
[1738332109355,1.124e-05,240.32,240.29,4.1617]
[1738332110043,4.16131124,240.32,240.29,4.1617]
[1738332110855,4.16131124,240.32,240.3,4.1616]
[1738332111454,4.16131124,240.32,240.27,0.02973795]
[1738332111652,4.1619,240.29,240.27,0.02973795]
[1738332111854,11.22615848,240.3,240.27,0.02973795]
[1738332112250,4.1618,240.29,240.27,0.02973795]
[1738332112656,11.22615848,240.3,240.2,4.2382]
[1738332112954,15.38865848,240.26,240.22,4.1628]
[1738332113550,11.22615848,240.23,240.22,4.1628]
[1738332113853,11.22615848,240.23,240.2,4.19150194]
[1738332114253,11.22615848,240.23,240.21,4.1631]
[1738332114552,11.22615848,240.23,240.2,0.02830194]
[1738332117255,11.22615848,240.23,240.2,4.19160194]
[1738332117552,11.22615848,240.23,240.2,0.02830194]
[1738332118354,11.22615848,240.23,240.22,4.163]
[1738332118656,0.0267601,240.25,240.2,0.02830194]
[1738332120757,4.1893601,240.25,240.21,4.1632]
[1738332121052,0.0267601,240.25,240.2,0.02830194]
[1738332121454,11.22615848,240.23,240.2,0.02830194]
[1738332122156,4.1632,240.22,240.2,0.02830194]
[1738332122358,11.22615848,240.23,240.2,0.02830194]